Cogmind - Beta 17.1 @@@ ROGUE MODE // 2026.09.10 @ 02:18:40 Player: zed Result: Destroyed by G-73 Enforcer with Heavy Laser Performance ------------- Evolutions (6) 3000 Regions Visited (16) 3200 Robots Destroyed (120) 600 Value Destroyed (5882) 5882 Prototype IDs (19) 380 Alien Tech Used (0) 0 Bonus (5334) 5334 TOTAL SCORE: 18396 Bonus ------- High Alert Combat Kills 1177 Follower Combat Kills 3275 Registered with UFD 300 Met Optimus in HQ 500 Met Data Miner 300 Friendly Fire -218 Cogmind --------- Core Integrity 0/1150 Matter 215/300 Energy 65/100 System Corruption 24% Temperature Cool (0) Movement Treading (225) Ox1 Location -4/Armory Parts ------- > --- POWER (3) -------- (None) > --- PROPULSION (4) --- Advanced Medium Treads Advanced Medium Treads > --- UTILITY (9) ------ Medium Storage Unit Signal Interpreter Improved Target Analyzer Advanced ECM Suite Medium Reflective Plating > --- WEAPON (3) ------- Heavy Riot Gun Tesla Rifle Improved Remote Datajack > --- INVENTORY (10) --- Flexi-carbon Leg High-capacity Storage Unit High-capacity Matter Pod (200) Improved Remote Force Field Recalibrator Peak State ------------ > --- POWER ------------ Neutrino Core Antimatter Reactor Light Antimatter Reactor > --- PROPULSION ------- Advanced Medium Treads Advanced Medium Treads Advanced Medium Treads Advanced Medium Treads > --- UTILITY ---------- Advanced Heat Sink High-capacity Storage Unit High-capacity Matter Pod Signal Interpreter Advanced Targeting Computer Improved Phase Shifter Improved Heavy Armor Plating Amulet of Y3-NDR > --- WEAPON ----------- Enhanced Quantum Rifle Railgun Railgun > --- INVENTORY -------- Micro Fission Core Light Antimatter Reactor Advanced Medium Treads Advanced Medium Treads Improved Heat Sink Advanced Heat Sink Medium Storage Unit Advanced ECM Suite Improved Heavy Armor Plating Improved Remote Force Field Recalibrator High-powered Shock Rifle Cooled Pulse Rifle Matter Neutralizer Coil Gun KE Penetrator Micro-nuke Launcher Micro-nuke Launcher Fusion Bomb Launcher [Rating: 118] Favorites ----------- Power Light Antimatter Reactor Engine Angular Momentum Engine Power Core Fission Core Reactor Light Antimatter Reactor Propulsion Advanced Medium Treads Treads Advanced Medium Treads Leg Improved Carbon-fiber Leg Wheel Subdweller Monowheel Utility Signal Interpreter Device IFF Parser Storage High-capacity Storage Unit Processor Signal Interpreter Hackware Advanced Hacking Suite Protection Improved Powered Armor Weapon Improved Heavy Machine Gun Energy Gun Cooled Pulse Rifle Energy Cannon Matter Neutralizer Ballistic Gun Improved Heavy Machine Gun Ballistic Cannon Enhanced Gauss Cannon Launcher Long-range Missile Launcher Special Weapon Improved Remote Datajack Build | -11 -10 -10 -9 -6 -6 -6 -6 -6 -6 -5 -5 -5 -5 -5 -4 -4 ------- Run | Yrd Mat Sub Scr Fac Was Fac Low Low Dat Pro Fac Ext Cet Arc Fac Arm Slots Evolved 12 | . . . . 8 . . . . . . 2 . . . 2 . Power 2 | . . . . 2 . . . . . . . . . . . . Propulsion 2 | . . . . 2 . . . . . . . . . . . . Utility 7 | . . . . 3 . . . . . . 2 . . . 2 . Weapon 1 | . . . . 1 . . . . . . . . . . . . Parts Attached 164 | 6 7 3 15 6 3 11 5 4 . 4 9 10 8 8 9 56 Power 36 | 2 . . 3 1 1 1 3 . . 3 1 4 2 2 3 10 Engine 11 | 2 . . 1 1 1 . 3 . . 1 . . 1 . 1 . Core 12 | . . . 2 . . 1 . . . . . 4 1 . 1 3 Reactor 13 | . . . . . . . . . . 2 1 . . 2 1 7 Propulsion 43 | 2 4 2 3 1 1 4 . 1 . . 1 1 2 4 1 16 Treads 20 | . 2 . . . . 1 . 1 . . 1 1 2 4 . 8 Leg 15 | . . . 3 1 1 3 . . . . . . . . 1 6 Wheel 8 | 2 2 2 . . . . . . . . . . . . . 2 Hover . | . . . . . . . . . . . . . . . . . Flight . | . . . . . . . . . . . . . . . . . Utility 46 | . 2 1 3 3 . 4 1 2 . . 6 3 2 1 1 17 Device 21 | . . . 2 2 . 3 1 1 . . 1 1 1 . . 9 Storage 5 | . 1 . 1 . . 1 . 1 . . 1 . . . . . Processor 5 | . 1 . . 1 . . . . . . . 1 . . 1 1 Hackware 1 | . . . . . . . . . . . 1 . . . . . Protection 14 | . . 1 . . . . . . . . 3 1 1 1 . 7 Artifact . | . . . . . . . . . . . . . . . . . Weapon 39 | 2 1 . 6 1 1 2 1 1 . 1 1 2 2 1 4 13 Energy Gun 11 | . . . 1 . . 1 . 1 . . . 1 . . 1 6 Energy Cannon 2 | . . . . . . . . . . . . . . . 1 1 Ballistic Gun 15 | 2 . . 3 1 1 1 1 . . . . . 1 1 1 3 Ballistic Cannon 5 | . 1 . 1 . . . . . . 1 1 . 1 . . . Launcher 5 | . . . 1 . . . . . . . . 1 . . 1 2 Special Weapon 1 | . . . . . . . . . . . . . . . . 1 Impact Weapon . | . . . . . . . . . . . . . . . . . Slashing Weapon . | . . . . . . . . . . . . . . . . . Piercing Weapon . | . . . . . . . . . . . . . . . . . Special Melee Weapon . | . . . . . . . . . . . . . . . . . Unidentified Prototypes 1 | . . . 1 . . . . . . . . . . . . . Corrupted Parts 1 | . . . . . . . . . . . . . . . . 1 System Corruption 7 | . . . . . . . . . . . . . . . . 7 Parts Lost 81 | . . . 1 . . 1 1 . . 1 1 2 9 7 11 47 Power 21 | . . . . . . 1 . . . 1 . 2 3 2 2 10 Propulsion 20 | . . . 1 . . . 1 . . . . . 2 1 3 12 Utility 22 | . . . . . . . . . . . 1 . 2 3 2 14 Weapon 18 | . . . . . . . . . . . . . 2 1 4 11 Highest Loss Streak 22 | . . . 1 . . 1 1 . . 1 1 1 9 7 11 22 To Critical Strikes 4 | . . . . . . . . . . . . . 4 . . . Average Backups 10 | 2 5 4 5 3 4 7 8 9 11 16 14 11 10 8 8 10 Power . | . 1 1 . . 1 . . . . . 1 . . . . 1 Propulsion 1 | 1 2 1 . . . 1 1 2 3 3 1 1 . . . 1 Utility 5 | . . . 2 1 1 3 4 5 7 11 9 7 7 5 4 4 Weapon 2 | . 1 1 1 1 1 2 2 1 1 1 2 3 2 2 3 3 Tool/Special . | . . . . . . . . . . . . . . . . . Unused Backups 25 | . 4 1 2 . . 3 . . . 1 7 1 1 . 2 3 Power 1 | . . . . . . 1 . . . . . . . . . . Propulsion 4 | . 2 1 . . . . . . . . . 1 . . . . Utility 12 | . . . 1 . . . . . . 1 6 . 1 . 2 1 Weapon 8 | . 2 . 1 . . 2 . . . . 1 . . . . 2 Tool/Special . | . . . . . . . . . . . . . . . . . Average Slot Usage (%) 88 | . 84 99 99 79 92 92 97 89 86 83 82 92 86 83 82 78 Engine 8 | . 14 14 1 4 6 13 19 20 20 13 7 . 3 2 2 . Core 3 | . . . 12 6 6 4 . . . . . 5 6 2 1 4 Reactor 3 | . . . . . . . . . . 3 5 8 . 3 8 7 Treads 9 | . 1 . . . . 1 . 7 13 13 12 17 16 20 16 14 Leg 5 | . . . 1 20 25 18 24 8 . . . . . . 1 1 Wheel 3 | . 26 28 26 . . . . . . . . . . . . . Device 10 | . . . 4 10 13 13 13 13 13 13 8 7 9 7 12 14 Storage 7 | . 2 11 7 6 6 6 6 6 6 6 6 11 6 7 8 8 Processor 11 | . 11 14 14 11 13 13 13 13 13 13 9 8 11 11 10 8 Protection 3 | . . 2 1 . . . . . . . 7 11 10 6 3 3 Energy Gun 4 | . . . . 6 1 5 6 6 6 6 5 4 4 5 4 4 Ballistic Gun 9 | . 16 14 14 11 13 13 10 13 13 11 5 5 9 10 7 6 Ballistic Cannon 3 | . 11 14 12 . . . . . . 1 5 5 1 . . . Peak Build Rating 118 | 5 7 12 24 46 66 71 76 75 72 81 91 89 85 67 88 118 Average Rating 66 | 3 5 8 16 44 56 66 71 68 72 75 85 85 55 55 72 86 On Entrance 51 | . 5 7 12 22 46 66 67 65 72 72 81 89 83 52 67 63 Avg Prop Armor Cover (%) 7 | . . . 4 5 5 7 . . . . . . . . 8 11 Naked Turns . | . . . . . . . . . . . . . . . . . Heaviest Build 129 | 8 12 14 27 37 53 53 58 80 80 99 127 124 109 71 95 129 Greatest Support 128 | 20 40 40 40 57 85 84 84 100 100 100 128 128 128 112 112 120 Greatest Overweight (x) 2 | . . . 2 . 1 2 . . . . . . 1 . 1 2 Average Overweight (x) . | . . . . . . . . . . . . . . . . . Largest Inventory Capacity 20 | 5 5 5 8 8 8 10 10 20 20 20 20 20 20 10 10 20 Average Capacity 13 | 5 5 5 6 8 8 8 10 15 20 20 16 20 13 10 10 14 Most Carried 20 | 5 5 5 8 7 8 8 10 12 12 20 20 19 19 10 10 20 Average Carried 10 | 2 4 4 5 2 5 7 9 10 12 17 14 12 10 8 8 11 Final Capacity 20 | 5 5 5 8 8 8 10 10 20 20 20 20 20 10 10 10 10 Final Carried 20 | 5 5 5 8 3 7 8 10 12 12 20 11 19 8 10 10 5 Class Distribution -------------------- 20% | Derelict-Tank 19% | Scavenger-Tank 16% | Mutant 12% | Scavenger-Gunner 10% | Derelict-Skirmisher 8% | Skirmisher 5% | Scavenger-Mutant 3% | Tank Dominant Class ---------------- Mutant | -10/Materials Mutant | -10/Subcaves Mutant | -9/Scraptown Mutant | -6/Factory Scavenger-Gunner | -6/Waste Skirmisher | -6/Factory Derelict-Skirmisher | -6/Lower Caves Derelict-Tank | -6/Lower Caves Derelict-Tank | -6/Data Miner Derelict-Tank | -5/Proximity Caves Derelict-Tank | -5/Factory Scavenger-Tank | -5/Extension Scavenger-Gunner | -5/Cetus Scavenger-Gunner | -5/Archives Scavenger-Gunner | -4/Factory Scavenger-Gunner | -4/Armory Resources | -11 -10 -10 -9 -6 -6 -6 -6 -6 -6 -5 -5 -5 -5 -5 -4 -4 ----------- Run | Yrd Mat Sub Scr Fac Was Fac Low Low Dat Pro Fac Ext Cet Arc Fac Arm Matter Collected 5897 | 280 60 78 256 . 180 99 401 66 . 240 304 1038 . 349 816 1730 Remotely . | . . . . . . . . . . . . . . . . . Salvage Created 5657 | 33 . 24 70 . 494 99 193 . . . 414 688 33 349 1342 1918 Parts 220 | 4 . 1 4 . 2 8 12 . . . 12 29 1 12 67 68 Haulers Intercepted . | . . . . . . . . . . . . . . . . . Recyclers Shooed 4 | . . . . . . . . . . . . . . . 4 . Parts Field Recycled . | . . . . . . . . . . . . . . . . . Retrieved Matter . | . . . . . . . . . . . . . . . . . Parts Self-Destructed 43 | . . 10 . . . . 8 12 . 13 . . . . . . Prevented 17 | . . . . . . . . 8 . 9 . . . . . . Parts Restored 3 | . . . . . 2 1 . . . . . . . . . . Broken 3 | . . . . . 2 1 . . . . . . . . . . Kills | -11 -10 -10 -9 -6 -6 -6 -6 -6 -6 -5 -5 -5 -5 -5 -4 -4 ------- Run | Yrd Mat Sub Scr Fac Was Fac Low Low Dat Pro Fac Ext Cet Arc Fac Arm Combat Hostiles Destroyed 82 | 1 . 1 1 . 2 2 7 . . . 6 13 4 4 7 34 Guns 43 | 1 . 1 . . . 1 1 . . . 2 5 3 4 3 22 Cannons 14 | . . . . . . . . . . . 3 7 1 . . 3 AOE 25 | . . . 1 . 2 1 6 . . . 1 1 . . 4 9 Classes Destroyed 18 | 1 . 1 1 . 1 2 1 . . . 2 6 . . 2 1 Worker 10 | . . . . . . 1 . . . . . 1 . . 8 . Builder 11 | . . . . . . . . . . . . 2 . . 9 . Recycler 7 | . . . . . . . . . . . . 1 . . 6 . Mechanic 3 | . . . . . . . . . . . . . . . 1 2 Operator 2 | . . . . . . . . . . . . 1 . . . 1 Watcher 5 | . . . . . . . . . . . 1 2 1 . 1 . Swarmer 8 | . . . . . . . 3 . . . 1 4 . . . . Grunt 30 | 1 . . . . . . 4 . . . 1 1 . . 1 22 Brawler 2 | . . . . . . . . . . . 1 . . . . 1 Duelist 4 | . . . . . . . . . . . . . . . . 4 Sentry 11 | . . . . . . . . . . . . 4 . 4 1 2 Hunter 4 | . . . . . . . . . . . . 3 . . 1 . Programmer 13 | . . . . . . 2 . . . . 3 . . . 3 5 Heavy 1 | . . . . . . . . . . . . . . . 1 . Behemoth 1 | . . . . . . . . . . . . 1 . . . . Compactor 2 | . . . . . 2 . . . . . . . . . . . Cetus Guard 4 | . . . . . . . . . . . . . 4 . . . Subdweller 1 | . . 1 . . . . . . . . . . . . . . Scrapper 1 | . . . 1 . . . . . . . . . . . . . Best Kill Streak 23 | 1 . 1 1 . 2 2 4 . . . 2 5 5 2 23 8 Combat Bots Only 6 | 1 . 1 1 . 2 1 4 . . . 2 5 4 2 4 6 Max Kills in Single Turn 14 | 1 . 1 1 . 1 2 2 . . . 1 1 2 1 14 3 Gunslinging . | . . . . . . . . . . . . . . . . . Exploded 2 | . . . 1 . 1 1 2 . . . 1 1 . . 2 2 Melee . | . . . . . . . . . . . . . . . . . Uniques/NPCs Destroyed . | . . . . . . . . . . . . . . . . . Combat | -11 -10 -10 -9 -6 -6 -6 -6 -6 -6 -5 -5 -5 -5 -5 -4 -4 -------- Run | Yrd Mat Sub Scr Fac Was Fac Low Low Dat Pro Fac Ext Cet Arc Fac Arm Hostile Shots Fired 1073 | 7 . 10 30 . . 19 28 3 . 8 7 164 62 41 117 577 Missed 351 | 2 . 3 12 . . 7 11 . . 2 1 53 22 13 35 190 Hits 722 | 5 . 7 18 . . 12 17 3 . 6 6 111 40 28 82 387 Melee 15 | . . . 2 . . . . 1 . . 1 . . . . 11 Projectile 707 | 5 . 7 16 . . 12 17 2 . 6 5 111 40 28 82 376 Critical Strikes 45 | . . . 1 . . . 1 . . . 1 4 12 . 3 23 Damage Taken 15318 | 58 . 145 313 . 33 215 353 49 . 96 158 1954 1085 754 1802 8303 Core 1645 | . . 17 73 . . 15 46 20 . . . 123 138 57 111 1045 Absorbed by Shields 472 | . . . . . . . . . . . . 441 . . . 31 Redirected to Shielding 108 | . . . . . . . . . . . . . . . . 108 Ignored by Resistances 57 | . . . . . . . . . . . . . . . . 57 Core Remaining (%) 80 | 100 . . 64 . . . . . . 90 . . . 68 . . Volleys Fired 349 | 5 . 8 10 . 11 17 11 2 . 1 15 60 15 24 32 138 Largest 3 | 2 . 2 2 . 1 3 3 3 . 1 3 3 3 3 3 3 Hottest 170 | 40 . 50 71 . 43 103 100 100 . 15 82 143 105 101 146 170 Shots Fired 779 | 10 . 16 12 . 11 25 18 5 . 1 40 169 37 55 84 296 Gun 614 | 10 . 8 10 . . 25 11 5 . 1 25 104 23 54 71 267 Cannon 109 | . . 8 1 . . . . . . . 15 59 7 1 5 13 Launcher 55 | . . . 1 . 11 . 7 . . . . 6 7 . 8 15 Special 1 | . . . . . . . . . . . . . . . . 1 Kinetic 505 | 10 . 16 11 . . 8 7 4 . 1 30 119 30 47 52 170 Thermal 169 | . . . . . . . . . . . 10 44 . 8 6 101 Explosive 55 | . . . 1 . 11 . 7 . . . . 6 7 . 8 15 Electromagnetic 49 | . . . . . . 17 4 1 . . . . . . 18 9 Robot Hit Streak 23 | 2 . 7 3 . 5 7 10 . . . 12 18 10 23 11 21 Robot Miss Streak 11 | 2 . 3 1 . 1 4 1 7 . 8 11 3 1 1 4 3 Penetration Max 1 | . . . . . . . . . . . . . . 1 1 1 Secondary Targets 6 | . . . . . . . 1 . . . . . . . 1 4 Max Gunslinging Chain 1 | . . . . . . . 1 . . . . . . . 1 1 Shots Hit Robots 513 | 5 . 11 8 . 9 16 11 . . . 24 111 26 47 51 194 Core Hits 291 | 2 . 2 2 . 3 6 12 . . . 11 44 26 18 60 105 Critical Kills . | . . . . . . . . . . . . . . . . . Critical Parts Destroyed 4 | . . . 1 . . . . . . . . . . . 2 1 Critical Strikes 19 | . . . 1 . . . . . . . . 11 . 3 2 2 Burn 3 | . . . . . . . . . . . . 2 . . . 1 Destroy 7 | . . . 1 . . . . . . . . . . 3 2 1 Blast 9 | . . . . . . . . . . . . 9 . . . . Melee Attacks . | . . . . . . . . . . . . . . . . . Impact . | . . . . . . . . . . . . . . . . . Slashing . | . . . . . . . . . . . . . . . . . Piercing . | . . . . . . . . . . . . . . . . . Sneak Attacks . | . . . . . . . . . . . . . . . . . Combat Hostiles . | . . . . . . . . . . . . . . . . . Follow-up Attacks . | . . . . . . . . . . . . . . . . . Damage Inflicted 21243 | 77 . 172 209 . 1515 363 814 . . . 1053 3601 1109 1135 3646 7549 Guns 9618 | 77 . 66 121 . . 232 125 . . . 387 1490 385 1135 1246 4354 Cannons 2306 | . . 106 19 . . . . . . . 301 1307 170 . 98 305 Explosions 9313 | . . . 69 . 1515 131 689 . . . 365 804 554 . 2302 2884 Melee . | . . . . . . . . . . . . . . . . . Ramming 6 | . . . . . . . . . . . . . . . . 6 Kinetic 8753 | 77 . 172 140 . . 135 41 . . . 585 2212 555 981 963 2892 Thermal 3603 | . . . . . . 131 89 . . . 396 768 . 154 339 1726 Explosive 8408 | . . . 69 . 1515 . 600 . . . 72 621 554 . 2093 2884 Electromagnetic 473 | . . . . . . 97 84 . . . . . . . 251 41 Impact . | . . . . . . . . . . . . . . . . . Slashing . | . . . . . . . . . . . . . . . . . Piercing . | . . . . . . . . . . . . . . . . . Highest Corruption 24 | . . . . . . . . . . . 4 4 4 4 7 24 Average Corruption 6 | . . . . . . . . . . . 4 4 4 4 5 11 Corruption Purged . | . . . . . . . . . . . . . . . . . Corruption Blocked . | . . . . . . . . . . . . . . . . . Effects 151 | . . . . . . . . . . . 8 34 5 7 14 83 Message Errors 28 | . . . . . . . . . . . 3 4 1 1 3 16 Matter Fused 41 | . . . . . . . . . . . 3 10 . 2 6 20 Heat Flow Errors 25 | . . . . . . . . . . . 2 8 1 3 1 10 Energy Discharges 10 | . . . . . . . . . . . . 2 1 . . 7 Parts Rejected 7 | . . . . . . . . . . . . 2 . 1 . 4 Parts Fused 2 | . . . . . . . . . . . . 1 . . . 1 Data Loss (minor) 18 | . . . . . . . . . . . . 5 2 . 2 9 Data Loss (major) 3 | . . . . . . . . . . . . 1 . . 1 1 Misfires 3 | . . . . . . . . . . . . . . . 1 2 Alerts 1 | . . . . . . . . . . . . 1 . . . . Misdirections 5 | . . . . . . . . . . . . . . . . 5 Weapon Failures 8 | . . . . . . . . . . . . . . . . 8 Overload Shots 1 | . . . . . . . . . . . . . . . 1 . Overflow Damage 541 | . . . . . . . 13 . . . 73 89 . . 177 189 Projectiles 62 | . . . . . . . . . . . . 62 . . . . Explosions 479 | . . . . . . . 13 . . . 73 27 . . 177 189 Melee . | . . . . . . . . . . . . . . . . . Knockbacks 5 | . . 1 1 . . . . . . . . 3 . . . . Impact . | . . . . . . . . . . . . . . . . . Kinetic 5 | . . 1 1 . . . . . . . . 3 . . . . Secondary . | . . . . . . . . . . . . . . . . . Self-Inflicted Damage 508 | . . . . . 33 32 78 . . . . . . . . 365 Shots 12 | . . . . . 1 1 2 . . . . . . . . 8 Rammed 5 | . . . . . . . . . . . . 1 . . . 4 Targets Rammed 5 | . . . . . . . . . . . . 1 . . . 4 Kicked . | . . . . . . . . . . . . . . . . . Crushed . | . . . . . . . . . . . . . . . . . Highest Temperature 472 | 6 . . 39 . . 329 165 59 . 1 350 472 280 208 125 420 Average Temperature 108 | 6 . . 15 . . 149 73 34 . 1 96 127 148 87 46 109 Received Heat Transfer 2947 | 30 . . 163 . . . 73 . . 12 36 387 . 90 189 1967 Effects 17 | . . . . . . 1 . . . . 2 8 1 . . 5 Shutdowns 8 | . . . . . . . . . . . 2 4 . . . 2 Energy Bleed 1 | . . . . . . . . . . . . 1 . . . . Interference 6 | . . . . . . . . . . . . 2 1 . . 3 Matter Decay 1 | . . . . . . . . . . . . 1 . . . . Damage (minor) 1 | . . . . . . 1 . . . . . . . . . . Siege Activations . | . . . . . . . . . . . . . . . . . Martial Activations . | . . . . . . . . . . . . . . . . . Shielding Activations . | . . . . . . . . . . . . . . . . . Robots Disrupted . | . . . . . . . . . . . . . . . . . Combat Hostiles . | . . . . . . . . . . . . . . . . . Robots Corrupted . | . . . . . . . . . . . . . . . . . Combat Hostiles . | . . . . . . . . . . . . . . . . . Parts Fried . | . . . . . . . . . . . . . . . . . Impact Corruptions . | . . . . . . . . . . . . . . . . . Robots Melted . | . . . . . . . . . . . . . . . . . Combat Hostiles . | . . . . . . . . . . . . . . . . . Parts Melted 7 | . . . . . . . . . . . . 1 . . 1 5 Heat Transferred 4863 | . . . . . . 50 150 . . . 385 1173 . 296 348 2461 Parts Sabotaged . | . . . . . . . . . . . . . . . . . Parts Stolen 1 | . . . . . . . . 1 . . . . . . . . Parts Stripped . | . . . . . . . . . . . . . . . . . Power Chain Reactions 2 | . . . . . . 1 1 . . . . . . . . . Alert | -11 -10 -10 -9 -6 -6 -6 -6 -6 -6 -5 -5 -5 -5 -5 -4 -4 ------- Run | Yrd Mat Sub Scr Fac Was Fac Low Low Dat Pro Fac Ext Cet Arc Fac Arm Maximum Alert Level 3 | . . . . . . . . . . . 3 3 2 1 2 3 Low Security (%) 47 | 100 100 . . 100 100 100 . . . . 73 19 . 97 59 11 Level 1 14 | . . . . . . . . . . . 6 36 6 2 19 12 Level 2 20 | . . . . . . . . . . . 14 26 93 . 20 28 Level 3 16 | . . . . . . . . . . . 5 17 . . . 46 Level 4 . | . . . . . . . . . . . . . . . . . Level 5 . | . . . . . . . . . . . . . . . . . High Security . | . . . . . . . . . . . . . . . . . Max Security . | . . . . . . . . . . . . . . . . . Peak Influence 987 | 20 6 . . . 27 77 . . . . 784 841 508 201 448 987 Initial 453 | . 6 . . . . . . . . . 150 378 453 156 37 215 Average 319 | 2 . . . . 4 10 . . . . 195 423 448 151 173 610 Influence Increases 6587 | 20 . . . . 77 104 220 363 . 440 1215 1290 169 142 854 1693 Destroy 0b10 Robot/C 3260 | 20 . . . . . 40 140 240 . 260 500 760 80 80 300 840 Destroy 0b10 Robot/NC 275 | . . . . . . 5 . . . 10 15 55 5 . 155 30 Destroy Leader 478 | . . . . . . 20 20 . . 40 102 86 . . 94 116 Allied During Kill 835 | . . . . . . . . 78 . 130 205 215 . . 77 130 Successful Hack 13 | . . . . . . 5 . . . . 4 . 2 . . 2 Disable Machine 390 | . . . . . . 15 . . . . 105 30 . 60 30 150 Destroy Structure 856 | . . . . . 62 4 . . . . 104 84 82 2 198 320 Advance Influence 150 | . . . . . . . . . . . 150 . . . . . Partial Spotted 15 | . . . . . 15 . . . . . . . . . . . Lose Combat Pursuer 315 | . . . . . . 15 60 45 . . 30 60 . . . 105 Influence Decreases 5821 | 10 10 . . . 77 104 204 134 245 440 443 1251 588 426 522 1367 Entered New Map 1537 | . 4 . . . . . . 4 245 . . 394 358 236 71 225 Time Decay 2941 | 10 6 . . . 57 94 194 90 . 387 373 577 140 120 281 612 Lost Part 800 | . . . . . . 10 10 . . 10 10 20 90 70 110 470 Lost Ally 543 | . . . . . 20 . . 40 . 43 60 260 . . 60 60 Squads Dispatched 24 | . . . . . . 2 . . . . 4 3 . . 3 12 Investigation . | . . . . . . . . . . . . . . . . . Extermination 10 | . . . . . . 2 . . . . 2 . . . 1 5 Reinforcement 9 | . . . . . . . . . . . 2 3 . . 2 2 Assault 5 | . . . . . . . . . . . . . . . . 5 Garrison . | . . . . . . . . . . . . . . . . . Intercept . | . . . . . . . . . . . . . . . . . Searches Triggered . | . . . . . . . . . . . . . . . . . Data Miner Redirects 2 | . . . . . . . . . . . . . . . . 2 Construction Impeded 5 | . . . . . . . . . . . 1 2 . . 2 . Haulers Reinforced . | . . . . . . . . . . . . . . . . . Active Scanning Responses . | . . . . . . . . . . . . . . . . . Cargo Convoy Interrupts . | . . . . . . . . . . . . . . . . . Stealth | -11 -10 -10 -9 -6 -6 -6 -6 -6 -6 -5 -5 -5 -5 -5 -4 -4 --------- Run | Yrd Mat Sub Scr Fac Was Fac Low Low Dat Pro Fac Ext Cet Arc Fac Arm Distress Signals 7 | . . . . . . . . . . 1 . . 2 . 2 2 Communications Jammed . | . . . . . . . . . . . . . . . . . Distress Signals . | . . . . . . . . . . . . . . . . . Times Spotted 220 | 1 . 1 18 . 7 3 10 6 . 5 17 35 6 9 25 77 Peak Tracking Total 8 | 1 . 1 6 . 4 2 4 7 . 4 5 8 5 1 7 8 Tactical Retreats 32 | . . . 3 . 3 1 2 1 . . 1 4 . . 6 11 ECM-based Alert Blocks 20 | . . . . . . . . . . . . . . . 10 10 Traps | -11 -10 -10 -9 -6 -6 -6 -6 -6 -6 -5 -5 -5 -5 -5 -4 -4 ------- Run | Yrd Mat Sub Scr Fac Was Fac Low Low Dat Pro Fac Ext Cet Arc Fac Arm Traps Triggered 4 | . . . . 1 . . . . . . . 1 . . 1 1 Indirectly . | . . . . . . . . . . . . . . . . . Trap Hack Attempts . | . . . . . . . . . . . . . . . . . Triggered . | . . . . . . . . . . . . . . . . . Disarmed . | . . . . . . . . . . . . . . . . . Reprogrammed . | . . . . . . . . . . . . . . . . . Reused . | . . . . . . . . . . . . . . . . . Traps Extracted . | . . . . . . . . . . . . . . . . . Installed . | . . . . . . . . . . . . . . . . . Triggered . | . . . . . . . . . . . . . . . . . Machines | -11 -10 -10 -9 -6 -6 -6 -6 -6 -6 -5 -5 -5 -5 -5 -4 -4 ---------- Run | Yrd Mat Sub Scr Fac Was Fac Low Low Dat Pro Fac Ext Cet Arc Fac Arm Machines Disabled 32 | . . . 1 . . 1 . 1 . . 7 2 . 4 6 10 Max in Single Turn 4 | . . . 1 . . 1 . . . . 4 2 . 1 2 1 Energy Cycler 1 | . . . . . . . . . . . . 1 . . . . Machines Repaired . | . . . . . . . . . . . . . . . . . Machines Dismantled . | . . . . . . . . . . . . . . . . . Machines Sabotaged . | . . . . . . . . . . . . . . . . . Overloaded Fab Kills . | . . . . . . . . . . . . . . . . . Hacking | -11 -10 -10 -9 -6 -6 -6 -6 -6 -6 -5 -5 -5 -5 -5 -4 -4 --------- Run | Yrd Mat Sub Scr Fac Was Fac Low Low Dat Pro Fac Ext Cet Arc Fac Arm Machines Accessed 23 | . 1 . 6 . . 2 2 1 4 . 2 2 1 . . 2 Terminals 9 | . 1 . . . . 1 . 1 . . 2 2 1 . . 1 Fabricators 1 | . . . . . . 1 . . . . . . . . . . Repair Stations . | . . . . . . . . . . . . . . . . . Recycling Units 1 | . . . . . . . . . . . . . . . . 1 Scanalyzers . | . . . . . . . . . . . . . . . . . Garrison Access . | . . . . . . . . . . . . . . . . . Total Hacks 103 | . 2 . 42 . . 2 8 4 29 . 7 3 1 . . 5 Successful 99 | . 1 . 42 . . 2 8 4 29 . 5 2 1 . . 5 Failed 4 | . 1 . . . . . . . . . 2 1 . . . . Catastrophic . | . . . . . . . . . . . . . . . . . Database Lockouts . | . . . . . . . . . . . . . . . . . Manual . | . . . . . . . . . . . . . . . . . Terminals 20 | . 2 . . . . 1 . 4 . . 7 3 1 . . 2 Fabricators 1 | . . . . . . 1 . . . . . . . . . . Repair Stations . | . . . . . . . . . . . . . . . . . Recycling Units 3 | . . . . . . . . . . . . . . . . 3 Scanalyzers . | . . . . . . . . . . . . . . . . . Garrison Access . | . . . . . . . . . . . . . . . . . Terminal Hacks 95 | . 1 . 42 . . 1 8 4 29 . 5 2 1 . . 2 Record 70 | . 1 . 42 . . . 7 4 11 . 2 . 1 . . 2 Part Schematic 9 | . . . . . . . . . 9 . . . . . . . Robot Schematic 6 | . . . . . . . . . 6 . . . . . . . Prototype ID Bank 3 | . . . . . . . . . 3 . . . . . . . Open Door 1 | . . . . . . . 1 . . . . . . . . . Open DSF 1 | . . . . . . 1 . . . . . . . . . . Emergency Access Points 1 | . . . . . . . . . . . 1 . . . . . Alert Level 2 | . . . . . . . . . . . 1 1 . . . . Locate Traps 1 | . . . . . . . . . . . 1 . . . . . Zone Layout 1 | . . . . . . . . . . . . 1 . . . . Fabricator Hacks 1 | . . . . . . 1 . . . . . . . . . . Network Status 1 | . . . . . . 1 . . . . . . . . . . Repair Station Hacks . | . . . . . . . . . . . . . . . . . Recycling Unit Hacks 3 | . . . . . . . . . . . . . . . . 3 Recycle Component 1 | . . . . . . . . . . . . . . . . 1 Process 1 | . . . . . . . . . . . . . . . . 1 Retrieve Matter 1 | . . . . . . . . . . . . . . . . 1 Scanalyzer . | . . . . . . . . . . . . . . . . . Garrison Access Hacks . | . . . . . . . . . . . . . . . . . Unauthorized Hacks . | . . . . . . . . . . . . . . . . . Terminals . | . . . . . . . . . . . . . . . . . Fabricators . | . . . . . . . . . . . . . . . . . Repair Stations . | . . . . . . . . . . . . . . . . . Recycling Units . | . . . . . . . . . . . . . . . . . Scanalyzers . | . . . . . . . . . . . . . . . . . Garrison Access . | . . . . . . . . . . . . . . . . . Data Cores Recovered 1 | . 1 . . . . . . . . . . . . . . . Used . | . . . . . . . . . . . . . . . . . Hacking Detections 5 | . . . . . . . . . . . 2 2 . . . 1 Full Trace Events . | . . . . . . . . . . . . . . . . . Feedback Events . | . . . . . . . . . . . . . . . . . Feedback Blocked . | . . . . . . . . . . . . . . . . . Robot Schematics Acquired 6 | . . . . . . . . . 6 . . . . . . . Robots Built . | . . . . . . . . . . . . . . . . . Authchips . | . . . . . . . . . . . . . . . . . Time . | . . . . . . . . . . . . . . . . . Total Robot Build Rating . | . . . . . . . . . . . . . . . . . Part Schematics Acquired 9 | . . . . . . . . . 9 . . . . . . . Parts Built . | . . . . . . . . . . . . . . . . . Authchips . | . . . . . . . . . . . . . . . . . Time . | . . . . . . . . . . . . . . . . . Total Part Build Rating . | . . . . . . . . . . . . . . . . . Part Studies Acquired . | . . . . . . . . . . . . . . . . . Parts Repaired . | . . . . . . . . . . . . . . . . . Time . | . . . . . . . . . . . . . . . . . Parts Recycled 1 | . . . . . . . . . . . . . . . . 1 Recycled Matter 38 | . . . . . . . . . . . . . . . . 38 Retrieved Matter 38 | . . . . . . . . . . . . . . . . 38 Retrieved Components . | . . . . . . . . . . . . . . . . . Parts Scanalyzed . | . . . . . . . . . . . . . . . . . Part Schematics Acquired . | . . . . . . . . . . . . . . . . . Parts Damaged . | . . . . . . . . . . . . . . . . . Bothacking | -11 -10 -10 -9 -6 -6 -6 -6 -6 -6 -5 -5 -5 -5 -5 -4 -4 ------------ Run | Yrd Mat Sub Scr Fac Was Fac Low Low Dat Pro Fac Ext Cet Arc Fac Arm Used RIF Installer . | . . . . . . . . . . . . . . . . . Robots Hacked . | . . . . . . . . . . . . . . . . . Non-combat . | . . . . . . . . . . . . . . . . . Combat . | . . . . . . . . . . . . . . . . . Robot Hacks Applied . | . . . . . . . . . . . . . . . . . Relay Couplers Released . | . . . . . . . . . . . . . . . . . Fabnet Peak Effective % . | . . . . . . . . . . . . . . . . . Robots Rewired 9 | . . . . . . . . . . . . 5 . . . 4 Allies Hacked . | . . . . . . . . . . . . . . . . . Hacks Repelled . | . . . . . . . . . . . . . . . . . Allies | -11 -10 -10 -9 -6 -6 -6 -6 -6 -6 -5 -5 -5 -5 -5 -4 -4 -------- Run | Yrd Mat Sub Scr Fac Was Fac Low Low Dat Pro Fac Ext Cet Arc Fac Arm Total Allies 40 | . . . . . 1 . . 6 . 4 5 12 . . 8 4 Largest Group 7 | . . . . . 1 . . 4 4 4 4 7 . . 4 7 Highest-Rated Group 451 | . . . . . 31 . . 324 324 324 324 322 . . 324 451 Highest-Rated Ally 159 | . . . . . 31 . . 81 81 81 81 159 . . 81 81 Initial UFD Resources 29 | . . . . 22 22 22 22 22 22 25 25 25 25 25 29 29 Total Orders . | . . . . . . . . . . . . . . . . . Ally Attacks 479 | . . . . . 9 . . 25 . 42 117 164 . . 40 82 Total Damage 14422 | . . . . . 167 . . 1390 . 1188 2888 3602 . . 1979 3208 Kills 112 | . . . . . . . . 12 . 15 25 30 . . 15 15 Allies Corrupted . | . . . . . . . . . . . . . . . . . Allies Melted 2 | . . . 2 . . . . . . . . . . . . . Intel | -11 -10 -10 -9 -6 -6 -6 -6 -6 -6 -5 -5 -5 -5 -5 -4 -4 ------- Run | Yrd Mat Sub Scr Fac Was Fac Low Low Dat Pro Fac Ext Cet Arc Fac Arm Active Infowar (turns) 7798 | . . . . 15 . 1039 1630 419 139 1793 386 526 59 . 652 1140 IFF 5989 | . . . . . . 1039 1628 419 139 1793 386 526 59 . . . Triangulation 933 | . . . . . . 523 410 . . . . . . . . . Cloaking 15 | . . . . 15 . . . . . . . . . . . . Jamming 335 | . . . . . . . . . . . . . . . . 335 ECM 3333 | . . . . . . 384 1220 133 . . . . . . 652 944 Robot Analysis Total . | . . . . . . . . . . . . . . . . . Derelict Logs Recovered 8 | . . 1 2 . . . 2 1 . 2 . . . . . . Drone Launches . | . . . . . . . . . . . . . . . . . Drone Recoveries . | . . . . . . . . . . . . . . . . . Exploration | -11 -10 -10 -9 -6 -6 -6 -6 -6 -6 -5 -5 -5 -5 -5 -4 -4 ------------- Run | Yrd Mat Sub Scr Fac Was Fac Low Low Dat Pro Fac Ext Cet Arc Fac Arm Turns Passed 13423 | 83 203 554 1172 39 284 1110 1630 419 139 1793 1036 1763 299 247 652 2000 Spaces Moved 8273 | 68 212 497 1073 31 230 714 1194 277 87 1089 578 818 145 93 315 852 Core 15 | 15 . . . . . . . . . . . . . . . . Treads 4052 | . 1 . . . . 199 . 137 87 1089 578 818 145 93 289 616 Legs 2281 | . . . 44 31 230 515 1194 140 . . . . . . 26 101 Wheels 1925 | 53 211 497 1029 . . . . . . . . . . . . 135 Hover . | . . . . . . . . . . . . . . . . . Flight . | . . . . . . . . . . . . . . . . . Fastest Speed 50 | 50 80 80 95 100 100 106 120 120 160 160 160 160 160 160 160 100 Average Speed 135 | 73 80 92 100 100 107 130 120 139 160 160 160 160 161 160 165 159 Slowest Speed 270 | 80 160 110 270 100 170 260 120 160 160 160 160 160 240 160 240 260 Overloaded Moves . | . . . . . . . . . . . . . . . . . Propulsion Burnouts . | . . . . . . . . . . . . . . . . . Robots Hopped . | . . . . . . . . . . . . . . . . . Potential Cave-ins 6 | . . . . . . . . . . . . . . . . 6 Cave-ins Triggered . | . . . . . . . . . . . . . . . . . Exploration Rate (%) 49 | 5 37 26 77 2 87 10 89 49 74 98 17 84 65 78 8 36 Regions Visited 16 Branch Regions 10 Pre-discovered Areas 5 | . . . . . . . 2 2 1 . . . . . . . Known Exits Taken 13 | . 1 1 1 . . 1 1 1 1 1 1 1 1 1 1 . Unknown Exits Taken 1 | 1 . . . . . . . . . . . . . . . . Scrap Searched 8 | . . . 1 . . . 2 2 . 3 . . . . . . Spaces Dug 2 | . . . . . . . . . . . . 2 . . . . Terrain Destroyed 739 | . . . 22 . 125 3 79 . . . 13 22 91 1 126 257 Melee . | . . . . . . . . . . . . . . . . . Projectile 81 | . . . 1 . . . 1 . . . 7 20 . 1 14 37 AOE 656 | . . . 21 . 125 3 78 . . . 6 2 91 . 112 218 Terrain Rammed . | . . . . . . . . . . . . . . . . . Walls Destroyed . | . . . . . . . . . . . . . . . . . Machines Disabled . | . . . . . . . . . . . . . . . . . Actions | -11 -10 -10 -9 -6 -6 -6 -6 -6 -6 -5 -5 -5 -5 -5 -4 -4 --------- Run | Yrd Mat Sub Scr Fac Was Fac Low Low Dat Pro Fac Ext Cet Arc Fac Arm Total 9857 | 88 243 574 1156 39 252 877 1374 305 87 1138 664 1154 180 144 380 1202 Wait 673 | 5 11 59 24 . 3 97 149 15 1 34 32 190 2 11 3 37 Move 8258 | 67 211 496 1072 31 229 713 1193 276 86 1088 577 817 144 92 314 852 Hop . | . . . . . . . . . . . . . . . . . Pick Up 116 | 5 5 3 15 1 4 14 4 4 . 7 10 13 . 2 9 20 Fast Attach 80 | 5 4 1 4 . 1 3 2 . . 3 3 2 . 8 4 40 Attach 69 | . . . 1 6 2 4 . 2 . . 3 2 10 3 8 28 Detach 35 | . . . 1 . 1 5 1 2 . 1 2 . 2 3 3 14 Swap 87 | 1 5 2 13 1 1 8 8 3 . 1 6 13 5 1 2 17 Drop 96 | . 7 5 16 . . 16 6 1 . 2 16 4 2 . 5 16 Fire 349 | 5 . 8 10 . 11 17 11 2 . 1 15 60 15 24 32 138 Melee . | . . . . . . . . . . . . . . . . . Ram 2 | . . . . . . . . . . . . . . . . 2 Kick . | . . . . . . . . . . . . . . . . . Crush 3 | . . . . . . . . . . . . 1 . . . 2 Escape Stasis . | . . . . . . . . . . . . . . . . . Rewire 89 | . . . . . . . . . . 1 . 52 . . . 36 Trap . | . . . . . . . . . . . . . . . . . Miscellaneous . | . . . . . . . . . . . . . . . . . Route ------- -11/Scrapyard -10/Materials (discovered 2 exits: *Mat / *Sub) -10/Subcaves -9/Scraptown (discovered 2 exits: *Fac x2) -6/Factory -6/Waste -6/Factory -6/Lower Caves -6/Lower Caves (discovered 2 exits: Fac / *Dat) -6/Data Miner -5/Proximity Caves -5/Factory (discovered 4 exits: Fac x3 / *Ext) -5/Extension (discovered 2 exits: *Fac / *Cet) -5/Cetus -5/Archives -4/Factory -4/Armory History --------- Turn | Location | Event 2 | -11/Scrapyard | Met Revision 17 52 | -11/Scrapyard | Discovered new exit (range 8) 84 | -11/Scrapyard | Entered Materials 85 | -10/Materials | Met a group of wandering Federalists 267 | -10/Materials | Discovered new exit (range 8) 272 | -10/Materials | Identified exit to Materials 283 | -10/Materials | Discovered new exit (range 8) 286 | -10/Materials | Identified exit to Subcaves 287 | -10/Materials | Entered Subcaves 288 | -10/Subcaves | Continued accompanying wandering Federalists (4) 288 | -10/Subcaves | Approached by a straggling Scientist 316 | -10/Subcaves | Build established: Mutant 372 | -10/Subcaves | Visited triangular shrine 375 | -10/Subcaves | Learned Materials stockpile data 377 | -10/Subcaves | Found Prototype Device 497 | -10/Subcaves | Wandering Federalist uncovered a shortcut to Scraptown 500 | -10/Subcaves | Identified exit to Scraptown 647 | -10/Subcaves | Shifting Twisted Machinery released Sub. Machine Gun 691 | -10/Subcaves | Shifting Twisted Machinery released Mak. Thermal Plating 841 | -10/Subcaves | Entered Scraptown 923 | -9/Scraptown | Identified V3-11A's Pendant 1026 | -9/Scraptown | Visited TADAMA 1062 | -9/Scraptown | Visited Red Mages 1106 | -9/Scraptown | Visited Junk Repository 1173 | -9/Scraptown | Delivered V3-11A's Pendant to T0-NE2 in exchange for information 1457 | -9/Scraptown | Scanned Subdweller tech in exchange for log data 1460 | -9/Scraptown | Learned Research trap positions 1461 | -9/Scraptown | Learned Research machine intel 1487 | -9/Scraptown | Visited Symbiants 1512 | -9/Scraptown | Visited SPCMW 1548 | -9/Scraptown | Visited UFD Registry 1548 | -9/Scraptown | Registered with UFD as "Monohead" 1578 | -9/Scraptown | Visited Scrapoid Pod Storage 1593 | -9/Scraptown | Visited LU-1G1's Boring Crew 1640 | -9/Scraptown | Visited DA-N13 Charitable Foundation 1650 | -9/Scraptown | Found DCF Scrap (27 items) 1686 | -9/Scraptown | Visited A0-MCA Data Center 1691 | -9/Scraptown | Given a B+ rating by A0-MCA 1695 | -9/Scraptown | Found A0-MCA's Component Scanner 1728 | -9/Scraptown | Met Optimus 1728 | -9/Scraptown | Accepted into 0bPrime 1788 | -9/Scraptown | Visited Abandonware Association 1799 | -9/Scraptown | Learned abandonware demo "MELTYB.EXE" 1823 | -9/Scraptown | Visited Curators Association 1825 | -9/Scraptown | Civil war broke out across Scraptown 1905 | -9/Scraptown | Identified exit to Factory 1991 | -9/Scraptown | Lost 19 allies 2013 | -9/Scraptown | Entered Factory 2013 | -6/Factory | Evolved 8 slots: Power x2, Propulsion x2, Utility x3, Weapon x1 2052 | -6/Factory | Sucked down chute 2052 | -6/Factory | Entered Waste 2053 | -6/Waste | Met a frightened Derelict 2081 | -6/Waste | Spotted C-40 Crusher 2105 | -6/Waste | Spotted C-40 Crusher 2107 | -6/Waste | Destroyed C-40 Crusher 2112 | -6/Waste | Destroyed C-40 Crusher 2133 | -6/Waste | Spotted C-40 Crusher 2154 | -6/Waste | Spotted C-40 Crusher 2157 | -6/Waste | Spotted C-40 Crusher 2186 | -6/Waste | Spotted C-40 Crusher 2192 | -6/Waste | Found Gamma Bomb Array 2290 | -6/Waste | Build established: Scavenger-Gunner 2318 | -6/Waste | Discovered new exit (range 10) 2331 | -6/Waste | Identified exit to Factory 2336 | -6/Waste | Entered Factory 2693 | -6/Factory | Build established: Scavenger-Tank 2868 | -6/Factory | Discovered new exit (range 8) 2877 | -6/Factory | Identified exit to Lower Caves 2884 | -6/Factory | Identified exit to DSF 3040 | -6/Factory | Build established: Skirmisher 3446 | -6/Factory | Entered Lower Caves 3517 | -6/Lower Caves | Learned location of Extension (-5) 3635 | -6/Lower Caves | Found DCF Scrap (14 items) 4330 | -6/Lower Caves | Build established: Derelict-Skirmisher 4912 | -6/Lower Caves | Entered an active Warlord outpost 4927 | -6/Lower Caves | Learned Armory trap positions 4927 | -6/Lower Caves | Learned Extension terminal intel 4927 | -6/Lower Caves | Learned Armory garrison access intel 5004 | -6/Lower Caves | Learned Factory emergency access door positions 5005 | -6/Lower Caves | Discovered new exit (range 8) 5012 | -6/Lower Caves | Identified exit to Lower Caves 5076 | -6/Lower Caves | Entered another Lower Caves area 5077 | -6/Lower Caves | Identified exit to Factory 5194 | -6/Lower Caves | Prototype Device suddenly appears! 5208 | -6/Lower Caves | Found Amulet of Y3-NDR 5269 | -6/Lower Caves | Joined by bewildered Wizard 5276 | -6/Lower Caves | Joined by bewildered Wizard 5303 | -6/Lower Caves | Encountered a Warlord checkpoint 5327 | -6/Lower Caves | Joined by bewildered Wizard 5327 | -6/Lower Caves | Joined by bewildered Wizard 5338 | -6/Lower Caves | Attracted the attention of an 0b10 base 5392 | -6/Lower Caves | Joined by bewildered Wizard 5392 | -6/Lower Caves | Joined by bewildered Wizard 5397 | -6/Lower Caves | Learned Armory stockpile data 5397 | -6/Lower Caves | Learned Research security intel 5426 | -6/Lower Caves | Learned location of 1 exit from Factory 5436 | -6/Lower Caves | Discovered new exit (range 16) 5493 | -6/Lower Caves | Identified exit to Data Miner 5495 | -6/Lower Caves | Entered Data Miner 5495 | -6/Data Miner | Accompanied by 4 allies 5495 | -6/Data Miner | Discovered new exit (range 6) 5503 | -6/Data Miner | Identified exit to Proximity Caves 5526 | -6/Data Miner | Met Data Miner 5566 | -6/Data Miner | Build established: Derelict-Tank 5569 | -6/Data Miner | Learned location of Section 7 (-2) 5569 | -6/Data Miner | Acquired the access code to Warlord's prototype stash 5598 | -6/Data Miner | Received God Mode back door access code from Data Miner 5634 | -6/Data Miner | Entered Proximity Caves 5634 | -5/Proximity Caves | Accompanied by 4 allies 5705 | -5/Proximity Caves | Spotted B-75 Beast 5778 | -5/Proximity Caves | Joined by bewildered Wizard 5817 | -5/Proximity Caves | Spotter reported a threat 5936 | -5/Proximity Caves | Learned Factory machine intel 6450 | -5/Proximity Caves | Joined by bewildered Wizard 6450 | -5/Proximity Caves | Joined by bewildered Wizard 6451 | -5/Proximity Caves | Joined by bewildered Wizard 6468 | -5/Proximity Caves | Lost 3 allies 7427 | -5/Proximity Caves | Entered Factory 7427 | -5/Factory | Accompanied by 4 allies 7427 | -5/Factory | Evolved 2 slots: Utility x2 7428 | -5/Factory | Identified exit to Factory 7431 | -5/Factory | Loaded intel: 294 machine locations 7833 | -5/Factory | Found Imp. Powered Armor 7959 | -5/Factory | Found Imp. Powered Armor 8207 | -5/Factory | Joined by bewildered Wizard 8207 | -5/Factory | Joined by bewildered Wizard 8236 | -5/Factory | Build established: Tank 8339 | -5/Factory | Joined by bewildered Wizard 8340 | -5/Factory | Joined by bewildered Wizard 8424 | -5/Factory | Discovered new exit (range 14) 8457 | -5/Factory | Identified exit to Extension 8463 | -5/Factory | Entered Extension 8463 | -5/Extension | Accompanied by 2 allies 8464 | -5/Extension | Loaded intel: 12 terminal locations 8546 | -5/Extension | Build established: Scavenger-Tank 8611 | -5/Extension | Spotted B-75 Beast 8837 | -5/Extension | Rescued a captive Derelict 8924 | -5/Extension | Rescued A7 9002 | -5/Extension | Rescued a captive Derelict 9006 | -5/Extension | Rescued a captive Derelict 9025 | -5/Extension | Rescued a captive Derelict 9026 | -5/Extension | Rescued a captive Derelict 9213 | -5/Extension | Allies destroyed B-75 Beast 9255 | -5/Extension | Lost 5 allies 9333 | -5/Extension | Spotted B-75 Beast 9364 | -5/Extension | Destroyed B-75 Beast 9607 | -5/Extension | Rescued a captive Derelict 9902 | -5/Extension | Energy Cycler disabled 9902 | -5/Extension | Rescued a captive Derelict 9905 | -5/Extension | Rescued a captive Derelict 9987 | -5/Extension | Lost 7 allies 10027 | -5/Extension | Extracted ID and sensor layout for unrecognized location from A7's data core 10195 | -5/Extension | Discovered exit to Factory (range 10) 10197 | -5/Extension | Discovered new exit (range 6) 10225 | -5/Extension | Identified exit to Cetus 10226 | -5/Extension | Entered Cetus 10252 | -5/Cetus | Spotted Cetus Guard 10252 | -5/Cetus | Spotted Cetus Guard 10258 | -5/Cetus | Spotted Cetus Guard 10264 | -5/Cetus | Destroyed Cetus Guard 10282 | -5/Cetus | Destroyed Cetus Guard 10294 | -5/Cetus | Destroyed Cetus Guard 10304 | -5/Cetus | Spotted Cetus Guard 10314 | -5/Cetus | Destroyed Cetus Guard 10320 | -5/Cetus | Lost 9 parts (3p2n2u2w) 10447 | -5/Cetus | Discovered new exit (range 15) 10492 | -5/Cetus | Spotted Cetus Guard 10492 | -5/Cetus | Spotted Cetus Guard 10524 | -5/Cetus | Identified exit to Archives 10525 | -5/Cetus | Entered Archives 10551 | -5/Archives | Build established: Scavenger-Gunner 10685 | -5/Archives | Lost 7 parts (2p1n3u1w) 10687 | -5/Archives | Discovered exit to Factory (range 14) 10726 | -5/Archives | Unable to access archive contents 10742 | -5/Archives | Unable to access archive contents 10772 | -5/Archives | Entered Factory 10772 | -4/Factory | Evolved 2 slots: Utility x2 10773 | -4/Factory | Identified exit to Armory 11071 | -4/Factory | Joined by bewildered Wizard 11072 | -4/Factory | Joined by bewildered Wizard 11072 | -4/Factory | Joined by bewildered Wizard 11142 | -4/Factory | Lost 3 allies 11179 | -4/Factory | Joined by bewildered Wizard 11179 | -4/Factory | Joined by bewildered Wizard 11181 | -4/Factory | Joined by bewildered Wizard 11224 | -4/Factory | Lost 11 parts (2p3n2u4w) 11235 | -4/Factory | Joined by bewildered Wizard 11403 | -4/Factory | Joined by bewildered Wizard 11424 | -4/Factory | Entered Armory 11424 | -4/Armory | Accompanied by 4 allies 11425 | -4/Armory | Loaded intel: 49 trap records 11460 | -4/Armory | Build established: Scavenger-Mutant 11541 | -4/Armory | Spotted B-86 Titan 11551 | -4/Armory | Allies destroyed B-86 Titan 11844 | -4/Armory | Build established: Scavenger-Gunner 11871 | -4/Armory | Found Fusion Bomb Launcher 11918 | -4/Armory | Lost 6 allies 12174 | -4/Armory | First assault squad dispatched 12194 | -4/Armory | Incoming assault squad redirected 12544 | -4/Armory | System corruption reached 10% 12591 | -4/Armory | Lost 7 parts (1p2n2u2w) 12955 | -4/Armory | Lost 12 parts (3p3n2u4w) 13157 | -4/Armory | Core integrity fell below 50% 13202 | -4/Armory | Incoming assault squad redirected 13264 | -4/Armory | Core integrity fell below 20% 13313 | -4/Armory | Lost 22 parts (5p6n7u4w) 13424 | -4/Armory | Destroyed by G-73 Enforcer with Heavy Laser Last Messages --------------- Identified Imp. Remote Datajack. Remote Datajacks cannot fire with other weapons in the same volley. P-70 Sage repels hacking attempt. Slammed into P-70 Sage. Acquired Tesla Rifle. P-70 Sage IFF system glitched. UCPJDBUN7BP%GTQRW3W, GHNFILEZIF>LMJL Slammed into P-70 Sage. M-36 Artificer repairs P-70 Sage. P-70 Sage resets P-70 Sage, system corruption cleaned. Med. Reflective Plating destroyed. C-45 Heavy ARC bursts open, deploying its payload. G-73 Enforcer unfolds itself. L-61 Swordsman unfolds itself. G-67 Veteran unfolds itself. E-15 Imp unfolds itself. [Achievement: 10k Club] Map ----- +----------------------------------------------------+ | ??????????????????????????????????????????????# | | ??????????????????????????????????????????????# | | ??????????????????????????????????????????????# | | ??????????????????????????????????????????????# | | ??????????????????????????????????????????????# | | ??????????????????????????????????????????????# | | ??????????????????????????????????????????????# | | ??????????????????????????????????????????????# | | ??#???????????????????????????????????????????# | | ???????????????????????????????????????????# | | T #?""???????????????????????????????????????# | | "? ???????????????????????????????????????# | | ???????????????????????????????????????# | | % # ?###???????????????????????????????????# | | #?# #???????????????????????????????????# | | % #?# #???????????????????????????????????# | | = % #?# #???????????????????????????????????# | | ### #????????????????????######?????????# | | ### ###??????????????????# #?????????# | | % ##+#"#####??????????????# #?????????# | | ##[ ################ #?????????# | | ##== # ] + !/ #########?# | | ="% % ; eg pp#### # + #?# = | | |"=]]![ ! ; g%l #??# # ## ### = | | !]]] p% *l #??#=# ## [ | | * [! ]]] %/;!%[ "" @#??# ####### = | | ** =*#=![ ; = """ #??# #?????#""" !! | | ** # = # """" +^? ?????#"T ! | | # # o #?^^ ?????#""" !! | | ##"########+##+##+##?^"""??#### | | #"#### ^""" | | ?#####+########+## """ ##+### | | " ?# ## #? ^""" ?????# | | " ?# ! ]] ## []#?? ? """ ?????## | | " ?# ]! ## [[ #???? ??" ??????+ | | ?# ]! ## [[ #????? ??????????#####+##+ | | " !?# ## ]] +?????? ????????????# ! | | " ?# ## ]] #????????##?????????????# | | " !?# ## ]] #???????????????????????#= | | ?=[?# """T""" ## #???????????????????????# | | ?#%?#################???????????????????????##"" " | | ??#??????????????????????????????????????????#""T" | | ?????????????????????????????????????????????# """ | | ?????????????????????????????????????????????##### | | ?????????????????????????????????????????????????? | | ?????????????????????????????????????????????????? | | ?????????????????????????????????????????????????? | | ?????????????????????????????????????????????????? | | ?????????????????????????????????????????????????? | | ?????????????????????????????????????????????????? | +----------------------------------------------------+ Best States ------------- Heat Dissipation 76 Energy Generation 54 Energy Capacity 780 Matter Stores 500 Matter Capacity 500 Sight Range 16 Terrain Scan Density 10 ECM Strength 2 Jamming Range 12 Cloak Strength 2 Armor Coverage 800 Resistance: KI 30 Resistance: TH 15 Utility Shielding 66 Phase Shifting 10 Evasion (%) 70 Targeting Accuracy 14 Target Analysis 6 Recoil Reduction 4 Kinecelleration 30 Offensive Hacking 14 Item Schematics ----------------- Combat Drone Bay | -6/Data Miner | Free Lgt. Regenerative Plating | -6/Data Miner | Free Cld. Gravmag System | -6/Data Miner | Free Exp. Heat Sink | -6/Data Miner | Free Smartbomb Launcher | -6/Data Miner | Free Impulse Thruster | -6/Data Miner | Free Adv. Reaction Control System | -6/Data Miner | Free Railgun | -6/Data Miner | Free Adv. Recalibrator | -6/Data Miner | Free Robot Schematics ------------------ Y-54 Guardian | -6/Data Miner | Free G-50 Soldier | -6/Data Miner | Free B-48 Gladiator | -6/Data Miner | Free R-10 Processor | -6/Data Miner | Free H-77 Assassin | -6/Data Miner | Free A-27 Freighter | -6/Data Miner | Free Fabricated ------------ Nothing Repaired ---------- Nothing Studied --------- None Alien Tech Used ----------------- None Achievements -------------- 10k Club A New Friend A Problem For Future Me Civilization 2243 Explorer Explosive Keycard Generalissimo Hydra I'm Back, Baby! Knowing Is Half The Battle Link The Feds Made in Tau Ceti IV Plot Armor Prison Break Respectable Loadout Rodney's Helpers Serviceable Loadout Significant Disruption Sprinter Strength In Numbers System Compromised The More The Merrier The Oracle Tourist Uncivil War Challenges ------------ None Game ------ Seed PiercingTrackerFlail Manual? 0 Play Time 06:35:08 Cumulative 9.9 hours Start 2026.09.09 @ 04:16:02 End 2026.09.10 @ 02:18:40 Sessions 5 Manual Loads 0 Difficulty Rogue Special Mode None Game No. 3 Rogue 3 Adventurer 0 Explorer 0 Win Type - Total 0 Types 0/0/0/0/0/0/0/0/0/0 Lore% 8 Gallery% 10 Achievement% 10 Wizard Run 0 Options --------- Layout 1 ASCII 0 Keyboard 0 Movement Numpad Keybinds 0 Fullscreen 2 Font 32/SmallcapsGlow Map View 50x35 Zoom Use 0% Tactical HUD 0 Map Filters NONE Filters NONE Steam 1 RUN: 76d0da6f-297e-487e-85a3-7605f2674272